bitfinex/quotes_BTCUSD_20240729
["timestamp","ask_amount","ask_price","bid_price","bid_amount"]
[1722272016953,0.02253499,67104.0,67103.0,1.87817359]
[1722272017296,0.00084,67109.0,67108.0,0.252]
[1722272017494,0.00084,67109.0,67108.0,1.98770588]
[1722272017726,0.43766131,67136.0,67130.0,0.446893]
[1722272017962,0.43766131,67136.0,67130.0,0.01477188]
[1722272018180,0.157362,67131.0,67130.0,0.01477188]
[1722272018399,0.455286,67131.0,67130.0,0.01477188]
[1722272019085,0.157362,67131.0,67130.0,0.01477188]
[1722272019503,0.0084,67131.0,67130.0,0.01477188]
[1722272019695,0.157362,67131.0,67130.0,0.01477188]
[1722272019920,1.051134,67131.0,67130.0,0.01477188]
[1722272020108,1.19423339,67131.0,67130.0,0.01477188]
[1722272020310,0.69432339,67131.0,67123.0,0.01477188]
[1722272020546,0.148978,67124.0,67123.0,0.01477188]
[1722272020748,0.446934,67124.0,67123.0,0.01477188]
[1722272020968,0.74489,67124.0,67123.0,0.01477188]
[1722272021168,0.14309939,67124.0,67116.0,0.01477188]
[1722272021373,0.446986,67116.0,67115.0,0.01477188]
[1722272021947,0.148993,67118.0,67115.0,0.01477188]
[1722272022148,0.148986,67121.0,67115.0,0.01477188]
[1722272022289,0.297934,67129.0,67115.0,0.01477188]
[1722272022494,0.24309939,67128.0,67115.0,0.01477188]
[1722272022903,0.148987,67120.0,67115.0,0.01477188]
[1722272023106,0.24309939,67128.0,67117.0,0.297984]
[1722272023107,0.1,67128.0,67117.0,0.297984]
[1722272023323,0.148978,67124.0,67115.0,0.01477188]
[1722272023532,0.148979,67124.0,67116.0,0.001]
[1722272023741,0.297969,67121.0,67116.0,0.001]
[1722272023941,0.007,67124.0,67116.0,0.001]
[1722272024147,0.148993,67117.0,67116.0,0.001]
[1722272024348,0.14309939,67123.0,67116.0,0.001]
[1722272024578,0.14899,67119.0,67116.0,0.001]
[1722272024774,0.148986,67120.0,67116.0,0.001]
[1722272025126,0.007,67124.0,67123.0,0.004]
[1722272025271,0.007,67124.0,67123.0,0.01877188]
[1722272025862,0.007,67124.0,67123.0,0.52571188]
[1722272026286,0.007,67124.0,67123.0,0.82367188]
[1722272026486,0.007,67124.0,67123.0,0.52571188]
[1722272026910,0.007,67124.0,67123.0,1.01677127]
[1722272027288,0.007,67124.0,67123.0,0.96677127]
[1722272027503,0.007,67124.0,67123.0,0.52571188]
[1722272027689,0.00084,67128.0,67125.0,0.148974]
[1722272027876,0.00084,67128.0,67124.0,0.148977]
[1722272028071,0.00084,67128.0,67125.0,0.148975]
[1722272028373,0.00084,67128.0,67124.0,0.148977]
[1722272028632,0.00824,67131.0,67124.0,0.0015542]
[1722272028852,0.02336907,67128.0,67124.0,0.0015542]
[1722272029047,0.02336907,67128.0,67125.0,0.00297934]
[1722272029247,0.02336907,67128.0,67127.0,0.148971]
[1722272029425,0.02336907,67128.0,67126.0,0.0015542]
[1722272029830,0.02336907,67128.0,67124.0,0.0015542]
[1722272030043,0.148975,67125.0,67124.0,0.0015542]
[1722272030213,0.297934,67129.0,67124.0,0.0015542]
[1722272030418,0.148969,67128.0,67124.0,0.0015542]
[1722272030733,0.148971,67127.0,67124.0,0.0015542]
[1722272031164,0.148972,67127.0,67124.0,0.0015542]
[1722272031363,0.148975,67125.0,67124.0,0.0015542]
[1722272031575,0.744877,67125.0,67124.0,0.0015542]
[1722272032513,0.446926,67125.0,67124.0,0.0015542]
[1722272032805,0.148973,67126.0,67125.0,0.006]
[1722272032947,0.297951,67125.0,67123.0,0.01477188]
[1722272033149,0.74489,67124.0,67123.0,0.01477188]
[1722272034051,0.446934,67124.0,67123.0,0.01477188]
[1722272034455,0.74489,67124.0,67123.0,0.02477188]
[1722272034662,0.76826057,67124.0,67123.0,0.02477188]
[1722272035040,0.00824,67131.0,67123.0,0.02477188]
[1722272035248,0.15477359,67130.0,67124.0,0.0015542]
[1722272035375,0.148967,67129.0,67124.0,0.0015542]
[1722272035571,0.148969,67128.0,67124.0,0.0015542]
[1722272035837,0.148967,67129.0,67124.0,0.0015542]
[1722272035976,0.14897,67128.0,67124.0,0.0015542]
[1722272036180,0.148969,67128.0,67124.0,0.0015542]
[1722272036374,0.148971,67127.0,67124.0,0.0015542]
[1722272036591,0.148971,67127.0,67124.0,0.0045542]
[1722272036796,0.148969,67128.0,67124.0,0.0045542]
[1722272036972,0.29794,67128.0,67124.0,0.0015542]
[1722272037184,0.297929,67130.0,67124.0,0.0095542]
[1722272037393,0.148969,67128.0,67124.0,0.0095542]
[1722272037593,0.15476856,67127.0,67124.0,0.0015542]
[1722272037791,0.14897,67128.0,67124.0,0.0015542]
[1722272038166,0.00824,67131.0,67127.0,0.0609]
[1722272038310,0.00824,67131.0,67130.0,0.148964]
[1722272038544,0.00824,67131.0,67130.0,0.16373588]
[1722272038746,0.00824,67131.0,67130.0,0.01477188]
[1722272039355,0.01024,67131.0,67130.0,0.01477188]
[1722272039988,0.00824,67131.0,67130.0,0.01477188]
[1722272040557,0.16299263,67131.0,67130.0,0.01477188]
[1722272040963,0.16299263,67131.0,67124.0,0.009]
[1722272040964,0.148975,67125.0,67124.0,0.009]
[1722272041171,0.446926,67125.0,67124.0,0.009]
[1722272041383,0.32709799,67125.0,67124.0,0.009]
[1722272041604,0.62504899,67125.0,67124.0,0.009]
[1722272042215,0.92299999,67125.0,67124.0,0.009]
[1722272042350,1.22095099,67125.0,67124.0,0.009]
[1722272042555,1.66200138,67125.0,67124.0,0.009]
[1722272042757,2.04952639,67125.0,67124.0,0.009]
[1722272043013,1.9458488,67125.0,67124.0,0.009]
[1722272043164,2.04952377,67125.0,67124.0,0.009]
[1722272043369,2.05252377,67125.0,67124.0,0.009]
[1722272043572,2.56537477,67125.0,67124.0,0.009]
[1722272043785,2.31575796,67125.0,67124.0,0.009]
[1722272043991,2.72270896,67125.0,67124.0,0.01]
[1722272044750,2.31575796,67125.0,67124.0,0.009]
[1722272044919,2.27775796,67125.0,67124.0,0.01]
[1722272045663,1.65885596,67125.0,67124.0,0.01]
[1722272045887,1.60752177,67125.0,67124.0,0.01]
[1722272046107,1.91257604,67125.0,67124.0,0.01]
[1722272046312,1.91257554,67125.0,67124.0,0.01]
[1722272046512,1.90057466,67125.0,67124.0,0.009]
[1722272046683,1.95193334,67125.0,67124.0,0.009]
[1722272046888,1.96193334,67125.0,67124.0,0.01]
[1722272047332,1.95495198,67125.0,67124.0,0.01]
[1722272047532,1.94495198,67125.0,67124.0,0.009]
[1722272047846,1.94495198,67125.0,67124.0,0.01]
[1722272047847,1.95495198,67125.0,67124.0,0.01]
[1722272048150,1.7997978,67125.0,67124.0,0.01]
[1722272048581,2.00505769,67125.0,67124.0,0.01]
[1722272048709,1.95505769,67125.0,67124.0,0.01]
[1722272049257,1.93168733,67125.0,67124.0,0.01]
[1722272049434,1.93209743,67125.0,67124.0,0.01]
[1722272049850,1.85679743,67125.0,67124.0,0.01]
[1722272050050,0.21612265,67125.0,67124.0,0.01]
[1722272050260,0.16475263,67125.0,67124.0,0.01]
[1722272051015,0.01,67125.0,67124.0,0.01]
[1722272051231,0.01,67125.0,67124.0,0.0115542]
[1722272051433,0.01,67125.0,67124.0,0.01]
[1722272051634,0.01,67125.0,67124.0,0.001]
[1722272051829,0.31373428,67125.0,67124.0,0.001]
[1722272052278,0.63505655,67125.0,67124.0,0.001]
[1722272052477,0.61168528,67125.0,67124.0,0.001]
[1722272052695,0.90963628,67125.0,67124.0,0.001]
[1722272053028,1.20758728,67125.0,67124.0,0.001]
[1722272053552,1.35068667,67125.0,67124.0,0.009]
[1722272054414,0.16475928,67125.0,67124.0,0.001]
[1722272054813,0.16475928,67125.0,67124.0,0.01]
[1722272055228,0.30373428,67125.0,67118.0,0.0015542]
[1722272055458,0.30373728,67124.0,67118.0,0.0015542]
[1722272055660,0.297938,67128.0,67117.0,0.297985]
[1722272055954,0.09306686,67127.0,67124.0,0.008]
[1722272056188,0.09306686,67126.0,67125.0,0.0015542]
[1722272056331,0.09394699,67126.0,67125.0,0.0015542]
[1722272056539,0.148967,67129.0,67125.0,0.0015542]
[1722272056718,0.09400044,67128.0,67125.0,0.0015542]
[1722272056918,0.09400044,67127.0,67125.0,0.0015542]
[1722272057126,0.00824,67131.0,67125.0,0.0015542]
[1722272057127,0.148965,67130.0,67125.0,0.0015542]
[1722272057329,0.09645786,67129.0,67125.0,0.0015542]
[1722272057559,0.09645786,67129.0,67124.0,0.02377188]
[1722272057560,0.00824,67131.0,67130.0,0.446893]
[1722272057760,0.00824,67131.0,67128.0,0.297938]
[1722272057945,0.00824,67131.0,67130.0,0.148964]
[1722272058147,0.10296629,67131.0,67128.0,0.0015542]
[1722272058351,0.004,67129.0,67128.0,0.0015542]
[1722272058546,0.09872629,67129.0,67128.0,0.0015542]
[1722272059153,0.004,67129.0,67128.0,0.4484612]
[1722272059825,0.004,67129.0,67128.0,0.1505232]
[1722272060115,0.004,67129.0,67128.0,0.4484612]
[1722272060286,0.00824,67131.0,67128.0,0.2994922]
[1722272060500,0.00824,67131.0,67130.0,0.148964]
[1722272061304,0.00824,67131.0,67130.0,0.446893]
[1722272061512,0.00824,67131.0,67128.0,0.0015542]
[1722272061721,0.00824,67131.0,67130.0,0.004]
[1722272062320,0.24961859,67131.0,67130.0,0.004]
[1722272062435,0.10065659,67131.0,67130.0,0.004]
[1722272062639,0.00824,67131.0,67130.0,0.149964]
[1722272062844,0.00824,67131.0,67130.0,0.001]
[1722272063251,0.148966,67129.0,67128.0,0.0015542]
[1722272063451,0.00824,67131.0,67127.0,0.0659]
[1722272063647,0.02336777,67129.0,67128.0,0.0055542]
[1722272064823,0.02336777,67129.0,67128.0,0.1545232]
[1722272065039,0.02336777,67129.0,67128.0,0.0055542]
[1722272065695,0.02336777,67129.0,67128.0,0.1545232]
[1722272066097,0.02336777,67129.0,67128.0,0.4484612]
[1722272066216,0.02436777,67129.0,67128.0,0.1565232]
[1722272067194,0.001,67129.0,67128.0,0.4544612]
[1722272067541,0.001,67129.0,67128.0,0.89549859]
[1722272067718,0.001,67129.0,67128.0,0.89394439]
[1722272067924,0.001,67129.0,67128.0,1.58438239]
[1722272068143,0.001,67129.0,67128.0,1.90732039]
[1722272068364,0.001,67129.0,67128.0,1.99336493]
[1722272068959,0.001,67129.0,67128.0,1.69542693]
[1722272069168,0.00824,67131.0,67130.0,1.194751]
[1722272069375,0.00824,67131.0,67130.0,2.00129581]
[1722272069978,0.03160337,67131.0,67130.0,2.00129581]
[1722272070581,0.03260337,67131.0,67130.0,2.00829581]
[1722272071023,0.03160337,67131.0,67130.0,2.00129581]
[1722272071543,0.00824,67131.0,67130.0,2.00129581]
[1722272071842,0.00824,67131.0,67130.0,2.00235904]
[1722272072146,0.00824,67131.0,67130.0,2.03035936]
[1722272072597,0.00824,67131.0,67130.0,1.92925127]
[1722272073294,0.00824,67131.0,67130.0,1.90625127]
[1722272073464,0.00824,67131.0,67130.0,1.29439327]
[1722272073663,0.00824,67131.0,67130.0,1.20839327]
[1722272074049,0.00824,67131.0,67130.0,1.21561862]
[1722272074254,0.00824,67131.0,67130.0,1.20161862]
[1722272074645,0.00824,67131.0,67130.0,1.18684674]
[1722272074791,0.03160388,67131.0,67130.0,1.18684674]
[1722272075010,0.03160388,67131.0,67130.0,1.20084674]
[1722272075546,0.03160388,67131.0,67130.0,1.49877574]
[1722272075762,0.03160388,67131.0,67130.0,1.20084674]
[1722272075886,0.00824,67131.0,67130.0,1.20084674]
[1722272076098,0.00824,67131.0,67130.0,1.51477574]
[1722272076535,0.00824,67131.0,67130.0,1.90914123]
[1722272077162,0.00824,67131.0,67130.0,2.00914123]
[1722272077510,0.00824,67131.0,67130.0,1.99543326]
[1722272077713,0.00824,67131.0,67130.0,2.00943326]
[1722272077851,0.00824,67131.0,67130.0,2.02343326]
[1722272078045,0.00084,67135.0,67134.0,1.492599]
[1722272078250,0.00084,67135.0,67134.0,2.57150979]
[1722272078746,0.00084,67135.0,67134.0,1.91387027]
[1722272078949,0.02420147,67135.0,67134.0,1.91387027]
[1722272079750,0.02420147,67135.0,67134.0,2.00035737]
[1722272080432,0.02420147,67135.0,67134.0,1.91387027]
[1722272080610,0.02420147,67135.0,67134.0,2.00008811]
[1722272080982,0.02420147,67135.0,67134.0,1.97708811]
[1722272081212,0.02420147,67135.0,67134.0,1.59095927]
[1722272081416,0.02420147,67135.0,67134.0,1.59295927]
[1722272081588,0.02420147,67135.0,67134.0,1.60695927]
[1722272081970,0.02420147,67135.0,67134.0,1.59295927]
[1722272082170,0.02420147,67135.0,67134.0,1.6791408]
[1722272082395,0.02420147,67135.0,67134.0,1.60695927]
[1722272083013,0.02420147,67135.0,67134.0,1.70713316]
[1722272083171,0.02420147,67135.0,67134.0,2.00504416]
[1722272083369,0.02420147,67135.0,67134.0,1.99027228]
[1722272083575,0.02420147,67135.0,67134.0,1.92709839]
[1722272083854,0.02420147,67135.0,67134.0,1.99069857]
[1722272086316,0.02420147,67135.0,67134.0,1.69278757]
[1722272086525,0.02420147,67135.0,67134.0,1.79278757]
[1722272086723,0.02420147,67135.0,67134.0,1.70618739]
[1722272087080,0.02420147,67135.0,67134.0,2.09093674]
[1722272088056,0.00084,67135.0,67134.0,2.09093674]
[1722272088874,0.0084,67136.0,67135.0,1.294674]
[1722272089077,0.0084,67136.0,67135.0,2.00883417]
[1722272089250,0.0084,67136.0,67135.0,2.08643417]
[1722272089694,0.0084,67136.0,67135.0,2.38434117]
[1722272090042,0.0084,67136.0,67135.0,2.38459189]
[1722272090265,0.0084,67141.0,67135.0,2.38459189]
[1722272090266,0.0084,67141.0,67140.0,1.790367]
[1722272090445,0.0084,67141.0,67140.0,2.26685546]
[1722272090644,0.0084,67152.0,67151.0,0.99659]
[1722272090847,0.0084,67152.0,67151.0,2.65335834]
[1722272091290,0.03175608,67152.0,67151.0,2.65335834]
[1722272091757,0.03175608,67152.0,67151.0,2.38135834]
[1722272093020,0.03175608,67152.0,67151.0,2.29426927]
[1722272093219,0.03175608,67152.0,67151.0,2.38217523]
[1722272095831,0.03175608,67152.0,67151.0,2.42656168]
[1722272095982,0.03175608,67152.0,67151.0,2.4117898]
[1722272096182,0.03175608,67152.0,67151.0,2.36740335]
[1722272096399,0.03175608,67152.0,67151.0,2.41205063]
[1722272097719,0.03175608,67152.0,67151.0,2.38166595]
[1722272098871,0.00839,67172.0,67159.0,1.5921]
[1722272099078,0.00839,67172.0,67159.0,1.93809761]
[1722272099483,0.00839,67172.0,67159.0,1.93804038]
[1722272099683,0.00839,67172.0,67159.0,1.84997127]
[1722272099890,0.00839,67172.0,67159.0,1.93803967]
[1722272100288,0.00839,67172.0,67159.0,1.43823967]
[1722272100531,0.00839,67172.0,67159.0,1.30017127]
[1722272100532,0.0634,67163.0,67159.0,1.30017127]
[1722272100709,0.0634,67163.0,67159.0,1.00237127]
[1722272100888,0.00839,67172.0,67163.0,0.1443]
[1722272101089,0.00839,67172.0,67171.0,0.76816355]
[1722272101336,0.00839,67172.0,67171.0,1.22378182]
[1722272101488,0.00839,67172.0,67171.0,1.52352882]
[1722272101696,0.00839,67172.0,67171.0,1.19694379]
[1722272101889,0.00839,67172.0,67171.0,0.45144979]
[1722272102096,0.00839,67172.0,67171.0,0.46139188]
[1722272102411,0.00839,67172.0,67171.0,0.16364488]
[1722272102854,0.00839,67172.0,67171.0,0.02877188]
[1722272103061,0.07439,67172.0,67171.0,0.02877188]
[1722272103260,0.07439,67172.0,67171.0,0.01477188]
[1722272103261,0.521004,67172.0,67171.0,0.01477188]
[1722272103443,0.521004,67172.0,67159.0,0.297798]
[1722272103444,0.09739,67172.0,67159.0,0.297798]
[1722272103642,0.841748,67172.0,67171.0,0.014]
[1722272104042,0.15569,67172.0,67171.0,0.014]
[1722272104259,0.00839,67172.0,67171.0,0.61849127]
[1722272104456,0.00839,67172.0,67171.0,1.21398527]
[1722272105080,0.00839,67172.0,67171.0,0.91623827]
[1722272105317,0.00839,67172.0,67171.0,1.50558527]
[1722272105743,0.00839,67172.0,67171.0,1.26398527]
[1722272106530,0.00839,67172.0,67171.0,1.36398527]
[1722272106746,0.00839,67172.0,67171.0,0.91623827]
[1722272106912,0.00839,67172.0,67171.0,0.02877188]
[1722272107090,0.00839,67172.0,67171.0,0.01477188]
[1722272107274,0.00839,67172.0,67171.0,0.17764488]
[1722272107695,0.15139,67172.0,67171.0,0.02877188]
[1722272107896,0.15139,67172.0,67171.0,0.021]
[1722272109354,0.15139,67172.0,67171.0,0.007]
[1722272109563,0.15139,67172.0,67167.0,0.148881]
[1722272109769,0.14888,67168.0,67167.0,0.01477188]
[1722272110022,0.023,67171.0,67167.0,0.01477188]
[1722272110478,0.14888,67168.0,67167.0,0.01477188]
[1722272110709,0.148878,67169.0,67167.0,0.01477188]
[1722272110918,0.023,67171.0,67167.0,0.01777188]
[1722272111130,0.297752,67170.0,67167.0,0.01777188]
[1722272111346,0.148876,67170.0,67167.0,0.01777188]
[1722272111525,0.023,67171.0,67167.0,0.01477188]
[1722272111526,0.148878,67169.0,67167.0,0.01477188]
[1722272111730,0.297752,67170.0,67167.0,0.01477188]
[1722272111929,0.148878,67169.0,67167.0,0.01477188]
[1722272112128,0.023,67171.0,67169.0,0.148877]
[1722272112261,0.023,67171.0,67167.0,0.01477188]
[1722272112980,0.81594355,67168.0,67167.0,0.003]
[1722272113264,0.81594355,67168.0,67167.0,0.0015]
[1722272113265,1.52410891,67168.0,67167.0,0.0015]
[1722272113400,0.1473,67152.0,67149.0,0.01477188]
[1722272114104,0.44676,67150.0,67149.0,0.01477188]
[1722272114300,0.23635874,67150.0,67140.0,0.01477188]
[1722272114488,0.44238,67141.0,67133.0,0.01477188]
[1722272114689,0.1445,67141.0,67133.0,0.01477188]
[1722272115068,0.1445,67141.0,67135.0,0.148952]
[1722272115270,0.1445,67141.0,67133.0,0.01477188]
[1722272115480,0.148945,67139.0,67133.0,0.01477188]
[1722272115685,0.442382,67141.0,67133.0,0.01477188]
[1722272115686,0.1445,67141.0,67133.0,0.01477188]
[1722272115889,0.1445,67141.0,67136.0,0.148949]
[1722272116090,0.1445,67141.0,67133.0,0.08631543]
[1722272116304,0.0632,67147.0,67134.0,0.14309939]
[1722272116522,0.0632,67147.0,67142.0,0.297873]
[1722272116721,0.0632,67147.0,67142.0,0.01477188]
[1722272117029,0.0613,67153.0,67152.0,0.148915]
[1722272117490,0.0613,67153.0,67152.0,0.744577]
[1722272117737,0.0613,67153.0,67152.0,0.446746]
[1722272118602,0.0652,67158.0,67157.0,0.148904]
[1722272118803,0.0652,67158.0,67156.0,0.148906]
[1722272119007,0.0652,67158.0,67157.0,0.148904]
[1722272119159,0.023359,67158.0,67157.0,0.75929388]
[1722272119361,0.0652,67170.0,67167.0,0.297763]
[1722272119565,0.0652,67170.0,67167.0,0.01477188]
[1722272119811,0.14888,67168.0,67167.0,0.01477188]
[1722272120012,0.44664,67168.0,67167.0,0.01477188]
[1722272120258,0.54792647,67168.0,67167.0,0.01477188]
[1722272120383,1.13268586,67168.0,67167.0,0.01477188]
[1722272120795,0.85792586,67168.0,67167.0,0.01477188]
[1722272121398,0.297793,67161.0,67160.0,0.01477188]
[1722272121648,0.297793,67161.0,67155.0,0.01477188]
[1722272121649,0.148907,67156.0,67155.0,0.01477188]
[1722272121850,0.1406,67160.0,67153.0,0.01477188]
[1722272121851,0.1636,67160.0,67153.0,0.01477188]
[1722272122052,0.09895322,67159.0,67157.0,0.297808]
[1722272122254,0.1636,67160.0,67154.0,0.297822]
[1722272122452,0.1636,67160.0,67153.0,0.01477188]
[1722272122453,0.148911,67154.0,67153.0,0.01477188]
[1722272122772,0.023,67154.0,67153.0,0.01477188]
[1722272123182,0.023,67155.0,67153.0,0.01477188]
[1722272123347,0.023,67157.0,67153.0,0.01477188]
[1722272123547,0.14309939,67156.0,67153.0,0.01477188]
[1722272123753,0.148911,67154.0,67153.0,0.01477188]
[1722272124195,0.171911,67154.0,67153.0,0.01477188]
[1722272124393,0.023,67154.0,67153.0,0.01477188]
[1722272124602,0.023,67155.0,67153.0,0.01477188]
[1722272124786,0.171909,67155.0,67153.0,0.01477188]
[1722272124986,0.148911,67154.0,67153.0,0.01477188]
[1722272125204,0.469733,67154.0,67153.0,0.01477188]
[1722272125405,0.469733,67154.0,67130.0,0.002]
[1722272125406,0.0605,67153.0,67140.0,0.01477188]
[1722272125703,0.148934,67144.0,67140.0,0.01477188]
[1722272126035,0.148933,67144.0,67140.0,0.01477188]
[1722272126153,0.0815,67145.0,67140.0,0.01477188]
[1722272126794,0.148935,67144.0,67137.0,0.148948]
[1722272126968,0.148934,67144.0,67137.0,0.148948]
[1722272127171,0.148934,67144.0,67135.0,0.297906]
[1722272127396,0.148938,67142.0,67135.0,0.148953]
[1722272127656,0.148936,67143.0,67136.0,0.148949]
[1722272127944,0.0618,67144.0,67140.0,0.297883]
[1722272128138,0.023,67143.0,67140.0,0.297883]
[1722272128390,0.023,67143.0,67142.0,0.148938]
[1722272128553,0.023,67143.0,67140.0,0.148942]
[1722272128911,0.023,67143.0,67137.0,0.297894]
[1722272129141,0.0618,67144.0,67143.0,0.446806]
[1722272129308,0.0618,67144.0,67142.0,0.148936]
[1722272129505,0.02336418,67142.0,67141.0,0.148939]
[1722272129814,0.02336418,67142.0,67140.0,0.148942]
[1722272130340,0.02336418,67142.0,67134.0,0.01477188]
[1722272130664,0.09722529,67141.0,67134.0,0.01477188]
[1722272130862,0.148943,67140.0,67134.0,0.01477188]
[1722272131092,0.02568174,67141.0,67134.0,0.01477188]
[1722272131093,0.171945,67139.0,67134.0,0.01477188]
[1722272131308,0.01062086,67142.0,67141.0,0.29788]
[1722272131450,0.01062086,67142.0,67141.0,1.39667127]
[1722272131653,0.07299,67172.0,67158.0,0.0812]
[1722272131860,0.07299,67172.0,67158.0,0.09597188]
[1722272132019,0.07299,67172.0,67158.0,0.01477188]
[1722272132465,0.07299,67172.0,67171.0,0.148873]
[1722272132641,0.07299,67172.0,67159.0,0.00297758]
[1722272132642,0.07299,67172.0,67170.0,0.16364688]
[1722272133045,0.07299,67172.0,67170.0,0.16364588]
[1722272133254,0.07299,67172.0,67171.0,0.148873]
[1722272133450,0.07299,67172.0,67171.0,0.44662]
[1722272134311,0.09634454,67172.0,67171.0,0.44662]
[1722272134520,0.09634454,67172.0,67170.0,0.01477188]
[1722272134729,0.07299,67172.0,67170.0,0.01477188]
[1722272134930,0.07299,67172.0,67171.0,0.44662]
[1722272135139,0.07299,67172.0,67171.0,1.042114]
[1722272135140,0.00839,67172.0,67171.0,1.042114]
[1722272135311,0.00839,67172.0,67171.0,1.18621339]
[1722272135719,0.00839,67172.0,67171.0,0.745367]
[1722272135922,0.03174271,67172.0,67171.0,0.745367]
[1722272137635,0.03174271,67172.0,67171.0,0.795367]
[1722272137835,0.03174271,67172.0,67171.0,1.093114]
[1722272138245,0.03174271,67172.0,67171.0,1.043114]
[1722272138448,0.03174271,67172.0,67171.0,0.745367]
[1722272138834,0.03174271,67172.0,67171.0,0.747367]
[1722272139140,0.00839,67172.0,67171.0,0.747367]
[1722272139976,0.00839,67172.0,67171.0,0.003]
[1722272140609,0.00839,67172.0,67171.0,0.001]
[1722272140812,0.00839,67172.0,67170.0,0.148875]
[1722272141019,0.00839,67172.0,67170.0,0.01477188]
[1722272141218,0.00839,67172.0,67170.0,0.16364688]
[1722272141421,0.00839,67172.0,67170.0,0.01477188]
[1722272141803,0.00839,67172.0,67171.0,0.148873]
[1722272142181,0.00839,67172.0,67170.0,0.01477188]
[1722272142372,0.53042,67171.0,67170.0,0.01477188]
[1722272142577,0.53042,67171.0,67159.0,0.297796]
[1722272142578,0.0838,67171.0,67163.0,0.01477188]
[1722272142701,0.297752,67170.0,67163.0,0.01477188]
[1722272142915,0.023,67169.0,67163.0,0.01477188]
[1722272143117,0.14888,67169.0,67163.0,0.01477188]
[1722272143356,0.023,67168.0,67163.0,0.01477188]
[1722272143683,0.22689939,67171.0,67165.0,0.297771]
[1722272143889,0.00839,67172.0,67165.0,0.297773]
[1722272144206,0.00839,67172.0,67171.0,0.44662]
[1722272144445,0.00839,67172.0,67171.0,0.16364488]
[1722272144646,0.00839,67172.0,67171.0,0.01477188]
[1722272146065,0.00839,67172.0,67171.0,0.02877188]
[1722272146272,0.03174461,67172.0,67171.0,0.02877188]
[1722272146473,0.00839,67172.0,67171.0,0.01477188]
[1722272146703,0.00839,67172.0,67171.0,0.02577188]
[1722272147402,0.00839,67172.0,67171.0,0.01477188]
[1722272147600,0.157261,67172.0,67171.0,0.01477188]
[1722272147760,0.157261,67172.0,67171.0,0.014]
[1722272147761,0.478004,67172.0,67171.0,0.014]
[1722272148214,0.03139,67172.0,67163.0,0.15289]
[1722272148500,0.03139,67172.0,67163.0,0.004]
[1722272148501,0.148883,67167.0,67163.0,0.004]
[1722272148707,0.148885,67166.0,67163.0,0.004]
[1722272148910,0.148887,67165.0,67163.0,0.004]
[1722272149064,0.297752,67170.0,67163.0,0.004]
[1722272149065,0.446667,67164.0,67163.0,0.004]
[1722272149473,0.527667,67164.0,67163.0,0.004]
[1722272149684,0.527667,67164.0,67154.0,0.01477188]
[1722272149685,0.744545,67155.0,67154.0,0.01477188]
[1722272150011,0.30849939,67164.0,67142.0,0.0803]
[1722272150012,0.14892,67150.0,67143.0,0.01477188]
[1722272150221,0.023,67163.0,67143.0,0.01477188]
[1722272150222,0.12154355,67161.0,67143.0,0.01477188]
[1722272150452,0.12154355,67161.0,67136.0,0.0803]
[1722272150453,0.0614,67147.0,67136.0,0.09507188]
[1722272150650,0.171929,67146.0,67136.0,0.09507188]
[1722272150774,0.023,67146.0,67141.0,0.297877]
[1722272150969,0.023,67146.0,67136.0,0.09507188]
[1722272150970,0.148932,67145.0,67137.0,0.297896]
[1722272151212,0.297851,67148.0,67138.0,0.297891]
[1722272151421,0.023,67147.0,67143.0,0.002]
[1722272151631,0.148927,67147.0,67143.0,0.002]
[1722272151843,0.148933,67145.0,67143.0,0.002]
[1722272152039,0.148932,67145.0,67143.0,0.002]
[1722272152238,0.148929,67146.0,67143.0,0.002]
[1722272152445,0.023,67145.0,67143.0,0.002]
[1722272152648,0.171931,67145.0,67143.0,0.002]
[1722272153090,0.023,67145.0,67143.0,0.002]
[1722272153699,0.023,67148.0,67143.0,0.002]
[1722272154041,0.17229406,67145.0,67143.0,0.002]
[1722272154241,0.02336306,67145.0,67143.0,0.002]
[1722272154684,0.02336306,67145.0,67143.0,0.01677188]
[1722272154861,0.02336306,67145.0,67143.0,0.01477188]
[1722272155700,0.36357594,67144.0,67143.0,0.01477188]
[1722272155897,0.36357594,67144.0,67142.0,0.000924]
[1722272155898,0.40477418,67144.0,67142.0,0.000924]
[1722272156073,0.09908172,67143.0,67142.0,0.000924]
[1722272156273,0.0848,67144.0,67142.0,0.000924]
[1722272156477,0.0848,67144.0,67142.0,0.298796]
[1722272156478,0.0228,67144.0,67142.0,0.298796]
[1722272156844,0.02336306,67145.0,67142.0,0.000924]
[1722272157358,0.148934,67144.0,67142.0,0.000924]
[1722272157662,0.02336306,67145.0,67142.0,0.000924]
[1722272157899,0.17229406,67145.0,67142.0,0.000924]
[1722272158061,0.446806,67143.0,67142.0,0.000924]
[1722272158263,0.148935,67143.0,67142.0,0.000924]
[1722272158466,0.446806,67143.0,67142.0,0.000924]
[1722272158663,0.767677,67143.0,67142.0,0.000924]
[1722272159650,1.27164739,67143.0,67142.0,0.000924]
[1722272159828,1.3699144,67143.0,67142.0,0.000924]
[1722272160650,2.00735746,67143.0,67142.0,0.000924]
[1722272160894,1.90735746,67143.0,67142.0,0.000924]
[1722272161108,1.26161546,67143.0,67142.0,0.000924]
[1722272161574,1.26161546,67143.0,67142.0,0.009924]
[1722272161575,1.58285504,67143.0,67142.0,0.009924]
[1722272162388,1.28498404,67143.0,67142.0,0.009924]
[1722272162803,1.55948646,67143.0,67142.0,0.009924]
[1722272163605,0.51707806,67143.0,67142.0,0.009924]
[1722272163792,0.45407806,67143.0,67142.0,0.009924]
[1722272163991,0.446806,67143.0,67142.0,0.009924]
[1722272164186,0.744677,67143.0,67142.0,0.009924]
[1722272164386,0.446806,67143.0,67142.0,0.009924]
[1722272165024,0.446806,67143.0,67142.0,0.000924]
[1722272165025,0.469806,67143.0,67142.0,0.000924]
[1722272165423,0.767677,67143.0,67142.0,0.001924]
[1722272165644,1.12847639,67143.0,67142.0,0.001924]
[1722272165905,1.12847639,67143.0,67120.0,0.1434]